Workbook

Sheet паспорт
A1: ПАТ "УКРТРАНСГАЗ" | G1: ПАСПОРТ ФІЗИКО-ХІМІЧНИХ ПОКАЗНИКІВ ПРИРОДНОГО ГАЗУ № 25
A2: Філія "УМГ "КИЇВТРАНСГАЗ" | G2: переданого Боярським ЛВУМГ та прийнятого ПАТ "Київоблгаз"
A3: Боярське ЛВУМГ | G3: Маршрут №25
A4: Вимірювальна хіміко-аналітична лабораторія
A5: Свідоцтво № 70А-43-14 чинно до 23.07.2019 р. | K5: по газопроводу "ХОТІВ - БОЯРКА" (ЄКК) | V5: за період з | X5: 2017-03-01 | Z5: по | AA5: 2017-03-31
A7: Число місяця | B7: Компонентний склад, % мол. | N7: Фізико-хімічні показники газу обчислені на основі компонентного складу, 101,325 кПа | X7: Температура точки роси за вологою (Р = 3.92 МПа), ºС | Y7: Температура точки роси за вуглеводнями, ºС | Z7: Вміст сірководню, г/м3 | AA7: Вміст меркаптанової сірки, г/м3 | AB7: Вміст механічних домішок, г/м3
N8: Густина абсолютна, кг/м3,при 20 ºС, | O8: Температура вимірювання/згоряння при 20/25°С
B9: метан, С1 | C9: етан, С2 | D9: пропан, С3 | E9: ізо-бутан, і-С4 | F9: н-бутан, н-С4 | G9: нео-пентан, нео-С5 | H9: ізо-пентан, і-С5 | I9: н-пентан, н-С5 | J9: гексани та вищі, С6+ | K9: кисень, О2 | L9: азот, N2 | M9: діоксид вуглецю, CО2 | O9: Теплота згоряння нижча | R9: Теплота згоряння вища | U9: Число Воббе вище
O10: ккал/м3 | P10: МДж/м3 | Q10: кВт⋅год/м3 | R10: ккал/м3 | S10: МДж/м3 | T10: кВт⋅год/м3 | U10: ккал/м3 | V10: МДж/м3 | W10: кВт⋅год/м3
A11: 1 | O11: =P11*238.8459 -> 8199.579747 | P11: 34.33 | Q11: =P11/3.6 -> 9.536111111 | R11: =S11*238.8459 -> 9083.309577 | S11: 38.03 | T11: =S11/3.6 -> 10.56388889 | AC11: =SUM(B11:M11)+$K$42+$N$42 -> 0
A12: 2 | O12: =P12*238.8459 -> 8199.579747 | P12: 34.33 | Q12: 9.536111111 | R12: =S12*238.8459 -> 9083.309577 | S12: 38.03 | T12: 10.56388889 | AC12: 0
A13: 3 | O13: 8199.579747 | P13: 34.33 | Q13: 9.536111111 | R13: 9083.309577 | S13: 38.03 | T13: 10.56388889 | AC13: 0 | AD13: =IF(AC13=100,"ОК"," ") -> 
A14: 4 | O14: 8199.579747 | P14: 34.33 | Q14: 9.536111111 | R14: 9083.309577 | S14: 38.03 | T14: 10.56388889 | AC14: 0 | AD14: =IF(AC14=100,"ОК"," ") -> 
A15: 5 | O15: 8199.579747 | P15: 34.33 | Q15: 9.536111111 | R15: 9083.309577 | S15: 38.03 | T15: 10.56388889 | AC15: 0
A16: 6 | B16: 89.6233 | C16: 4.9678 | D16: 1.0591 | E16: 0.11 | F16: 0.1692 | G16: 0.0036 | H16: 0.0441 | I16: 0.0375 | J16: 0.0699 | K16: 0.0163 | L16: 1.6929 | M16: 2.2064 | N16: 0.753 | O16: 8209.133583 | P16: 34.37 | Q16: 9.547222222 | R16: 9092.863413 | S16: 38.07 | T16: 10.575 | U16: =V16*238.8459 -> 11500.43008 | V16: 48.15 | W16: =V16/3.6 -> 13.375 | X16: -15.6 | Y16: -14.8 | AC16: 100.0001
A17: 7 | O17: 8209.133583 | P17: 34.37 | Q17: 9.547222222 | R17: 9092.863413 | S17: 38.07 | T17: 10.575 | AC17: 0
A18: 8 | O18: 8209.133583 | P18: 34.37 | Q18: 9.547222222 | R18: 9092.863413 | S18: 38.07 | T18: 10.575 | AC18: 0
A19: 9 | O19: 8209.133583 | P19: 34.37 | Q19: 9.547222222 | R19: 9092.863413 | S19: 38.07 | T19: 10.575 | AC19: 0
A20: 10 | O20: 8209.133583 | P20: 34.37 | Q20: 9.547222222 | R20: 9092.863413 | S20: 38.07 | T20: 10.575 | AC20: 0
A21: 11 | O21: 8209.133583 | P21: 34.37 | Q21: 9.547222222 | R21: 9092.863413 | S21: 38.07 | T21: 10.575 | AC21: 0
A22: 12 | O22: 8209.133583 | P22: 34.37 | Q22: 9.547222222 | R22: 9092.863413 | S22: 38.07 | T22: 10.575 | AC22: 0
A23: 13 | B23: 89.5453 | C23: 5.0662 | D23: 1.0952 | E23: 0.1118 | F23: 0.1698 | G23: 0.0036 | H23: 0.0445 | I23: 0.0363 | J23: 0.0664 | K23: 0.0092 | L23: 1.7153 | M23: 2.1363 | N23: 0.7532 | O23: 8223.464337 | P23: 34.43 | Q23: 9.563888889 | R23: 9107.194167 | S23: 38.13 | T23: 10.59166667 | U23: =V23*238.8459 -> 11517.1493 | V23: 48.22 | W23: =V23/3.6 -> 13.39444444 | AC23: 99.9999
A24: 14 | O24: 8223.464337 | P24: 34.43 | Q24: 9.563888889 | R24: 9107.194167 | S24: 38.13 | T24: 10.59166667 | AC24: 0
A25: 15 | O25: 8223.464337 | P25: 34.43 | Q25: 9.563888889 | R25: 9107.194167 | S25: 38.13 | T25: 10.59166667 | AC25: 0
A26: 16 | O26: 8223.464337 | P26: 34.43 | Q26: 9.563888889 | R26: 9107.194167 | S26: 38.13 | T26: 10.59166667 | AC26: 0
A27: 17 | O27: 8223.464337 | P27: 34.43 | Q27: 9.563888889 | R27: 9107.194167 | S27: 38.13 | T27: 10.59166667 | AC27: 0
A28: 18 | O28: 8223.464337 | P28: 34.43 | Q28: 9.563888889 | R28: 9107.194167 | S28: 38.13 | T28: 10.59166667 | AC28: 0
A29: 19 | O29: 8223.464337 | P29: 34.43 | Q29: 9.563888889 | R29: 9107.194167 | S29: 38.13 | T29: 10.59166667 | AC29: 0
A30: 20 | B30: 89.4819 | C30: 5.0678 | D30: 1.0801 | E30: 0.1127 | F30: 0.1739 | G30: 0.0039 | H30: 0.0464 | I30: 0.0391 | J30: 0.0769 | K30: 0.0107 | L30: 1.7512 | M30: 2.1554 | N30: 0.754 | O30: 8223.464337 | P30: 34.43 | Q30: 9.563888889 | R30: 9107.194167 | S30: 38.13 | T30: 10.59166667 | U30: =V30*238.8459 -> 11509.98392 | V30: 48.19 | W30: =V30/3.6 -> 13.38611111 | X30: -12.9 | Y30: -11.9 | AC30: 100 | AD30: =IF(AC30=100,"ОК"," ") -> ОК
A31: 21 | O31: =P31*238.8459 -> 8223.464337 | P31: 34.43 | Q31: =P31/3.6 -> 9.563888889 | R31: =S31*238.8459 -> 9107.194167 | S31: 38.13 | T31: =S31/3.6 -> 10.59166667 | AC31: 0
A32: 22 | O32: 8223.464337 | P32: 34.43 | Q32: 9.563888889 | R32: 9107.194167 | S32: 38.13 | T32: 10.59166667 | AC32: 0
A33: 23 | O33: 8223.464337 | P33: 34.43 | Q33: =P33/3.6 -> 9.563888889 | R33: 9107.194167 | S33: 38.13 | T33: =S33/3.6 -> 10.59166667 | AC33: 0 | AD33: =IF(AC33=100,"ОК"," ") -> 
A34: 24 | O34: 8223.464337 | P34: 34.43 | Q34: 9.563888889 | R34: 9107.194167 | S34: 38.13 | T34: 10.59166667 | AC34: 0
A35: 25 | O35: 8223.464337 | P35: 34.43 | Q35: 9.563888889 | R35: 9107.194167 | S35: 38.13 | T35: 10.59166667 | AC35: 0
A36: 26 | O36: 8223.464337 | P36: 34.43 | Q36: 9.563888889 | R36: 9107.194167 | S36: 38.13 | T36: =S36/3.6 -> 10.59166667 | AC36: 0
A37: 27 | B37: 89.7662 | C37: 4.8857 | D37: 1.0467 | E37: 0.1133 | F37: 0.1737 | G37: 0.0042 | H37: 0.0474 | I37: 0.0395 | J37: 0.0801 | K37: 0.0154 | L37: 1.7273 | M37: 2.1007 | N37: 0.7519 | O37: 8213.910501 | P37: 34.39 | Q37: 9.552777778 | R37: 9097.640331 | S37: 38.09 | T37: 10.58055556 | U37: =V37*238.8459 -> 11514.76084 | V37: 48.21 | W37: =V37/3.6 -> 13.39166667 | Z37: 0.006 | AA37: 0.02 | AB37: відсут | AC37: 100.0002
A38: 28 | O38: 8213.910501 | P38: 34.39 | Q38: 9.552777778 | R38: 9097.640331 | S38: 38.09 | T38: 10.58055556 | AC38: 0
A39: 29 | O39: 8213.910501 | P39: 34.39 | Q39: 9.552777778 | R39: 9097.640331 | S39: 38.09 | T39: 10.58055556 | AC39: 0
A40: 30 | O40: 8213.910501 | P40: 34.39 | Q40: 9.552777778 | R40: 9097.640331 | S40: 38.09 | T40: 10.58055556 | AC40: 0
A41: 31 | O41: 8213.910501 | P41: 34.39 | Q41: 9.552777778 | R41: 9097.640331 | S41: 38.09 | T41: 10.58055556 | AC41: 0
A42: Рівень одоризації відповідає чинним нормативним документам | O42: =SUMPRODUCT(O11:O41,' розрахунок'!G7:G37)/' розрахунок'!G38 -> 8214.58068 | P42: =SUMPRODUCT(P11:P41,' розрахунок'!G7:G37)/' розрахунок'!G38 -> 34.39280591 | Q42: =SUMPRODUCT(Q11:Q41,' розрахунок'!G7:G37)/' розрахунок'!G38 -> 9.553557196 | R42: =SUMPRODUCT(R11:R41,' розрахунок'!G7:G37)/' розрахунок'!G38 -> 9098.31051 | S42: =SUMPRODUCT(S11:S41,' розрахунок'!G7:G37)/' розрахунок'!G38 -> 38.09280591 | T42: =SUMPRODUCT(T11:T41,' розрахунок'!G7:G37)/' розрахунок'!G38 -> 10.58133497
H43: Середньозважене значення теплоти згоряння:
B46: Головний інженер Боярського ЛВУМГ Табак С.М. 03.04.2017 р.
C47: Підрозділу підприємства, якому підпорядкована лабораторія | O47: прізвище | R47: підпис | V47: дата
B48: Завідувач вимірювальної хіміко-аналітичної лабораторії Клименко І.А. 03.04.2017 р.
C49: Лабораторія, де здійснювалось вимірювання газу | O49: прізвище | R49: підпис | V49: дата
B50: Начальник служби газовимірювань та метрології Прима Ю.І. 03.04.2017 р.
C51: Підрозділу, відповідального за облік газу за маршрутом | O51: прізвище | R51: підпис | V51: дата

Sheet розрахунок (hidden)
A2: Додаток до Паспорту фізико-хімічних показників природного газу по маршруту № 25
A4: Число місяця | B4: Теплота згоряння вища, МДж/м3 | C4: Київська область | G4: Загальний обсяг газу, м3
C5: Обсяг газу переданого за добу, м3
C6: ГРС Обухів (ДРЕС) | D6: ГРС Обухів | E6: ГРС Бугаївка | F6: ГРС Козин
A7: 1 | B7: 38.03 | C7: 354.238 | D7: 64.667 | E7: 32.669 | F7: 43.922 | G7: =SUM(C7:F7) -> 495.496
A8: 2 | B8: 38.03 | C8: 387.285 | D8: 65.413 | E8: 33.455 | F8: 46.192 | G8: 532.345
A9: 3 | B9: 38.03 | C9: 385.305 | D9: 64.774 | E9: 33.526 | F9: 54.927 | G9: 538.532 | I9: 38.09230102 | J9: 38.09420434 | K9: 38.09409561 | L9: 38.09471911 | M9: 38.09291036
A10: 4 | B10: 38.03 | C10: 375.438 | D10: 63.081 | E10: 32.424 | F10: 53.838 | G10: 524.781 | I10: 9098.18992 | J10: 9098.644519 | K10: 9098.618551 | L10: 9098.76747 | M10: 9098.335458
A11: 5 | B11: 38.03 | C11: 383.66 | D11: 61.41 | E11: 30.105 | F11: 50.557 | G11: 525.732 | I11: 10.58119473 | J11: 10.58172343 | K11: 10.58169323 | L11: 10.58186642 | M11: 10.58136399
A12: 6 | B12: 38.07 | C12: 380.931 | D12: 58.085 | E12: 28.271 | F12: 47.176 | G12: 514.463
A13: 7 | B13: 38.07 | C13: 341.727 | D13: 55.001 | E13: 27.311 | F13: 46.126 | G13: 470.165
A14: 8 | B14: 38.07 | C14: 314.159 | D14: 60.318 | E14: 29.662 | F14: 50.018 | G14: 454.157 | I14: 38.09230102 | J14: 9098.18992 | K14: 10.58119473
A15: 9 | B15: 38.07 | C15: 286.105 | D15: 59.224 | E15: 30.53 | F15: 51.167 | G15: 427.026 | I15: 38.09420434 | J15: 9098.644519 | K15: 10.58172343
A16: 10 | B16: 38.07 | C16: 301.886 | D16: 57.19 | E16: 28.92 | F16: 48.623 | G16: 436.619 | I16: 38.09409561 | J16: 9098.618551 | K16: 10.58169323
A17: 11 | B17: 38.07 | C17: 301.739 | D17: 59.638 | E17: 29.226 | F17: 49.509 | G17: 440.112 | I17: 38.09471911 | J17: 9098.76747 | K17: 10.58186642
A18: 12 | B18: 38.07 | C18: 311.248 | D18: 60.9 | E18: 30.484 | F18: 51.275 | G18: 453.907 | I18: 38.09291036 | J18: 9098.335458 | K18: 10.58136399
A19: 13 | B19: 38.13 | C19: 317.207 | D19: 61.105 | E19: 30.044 | F19: 50.481 | G19: 458.837
A20: 14 | B20: 38.13 | C20: 295.956 | D20: 69.027 | E20: 34.193 | F20: 57.187 | G20: 456.363
A21: 15 | B21: 38.13 | C21: 452.768 | D21: 94.926 | E21: 52.647 | F21: 78.378 | G21: 678.719
A22: 16 | B22: 38.13 | C22: 332.407 | D22: 63.757 | E22: 30.625 | F22: 52.788 | G22: 479.577
A23: 17 | B23: 38.13 | C23: 316.775 | D23: 60.413 | E23: 30.575 | F23: 52.282 | G23: 460.045
A24: 18 | B24: 38.13 | C24: 327.312 | D24: 68.212 | E24: 34.968 | F24: 57.945 | G24: 488.437
A25: 19 | B25: 38.13 | C25: 334.047 | D25: 68.866 | E25: 34.463 | F25: 56.917 | G25: 494.293
A26: 20 | B26: 38.13 | C26: 314.487 | D26: 62.747 | E26: 30.581 | F26: 50.775 | G26: 458.59
A27: 21 | B27: 38.13 | C27: 330.657 | D27: 57.523 | E27: 27.856 | F27: 45.894 | G27: 461.93
A28: 22 | B28: 38.13 | C28: 294.23 | D28: 46.197 | E28: 21.117 | F28: 35.668 | G28: 397.212
A29: 23 | B29: 38.13 | C29: 302.983 | D29: 53.3 | E29: 25.332 | F29: 41.887 | G29: 423.502
A30: 24 | B30: 38.13 | C30: 306.393 | D30: 52.431 | E30: 26.007 | F30: 42.745 | G30: 427.576
A31: 25 | B31: 38.13 | C31: 296.907 | D31: 54.584 | E31: 27.639 | F31: 45.592 | G31: 424.722
A32: 26 | B32: 38.13 | C32: 297.705 | D32: 60.523 | E32: 31.563 | F32: 51.126 | G32: 440.917
A33: 27 | B33: 38.09 | C33: 297.724 | D33: 58.769 | E33: 28.302 | F33: 45.707 | G33: 430.502
A34: 28 | B34: 38.09 | C34: 297.479 | D34: 47.708 | E34: 22.589 | F34: 37.776 | G34: 405.552
A35: 29 | B35: 38.09 | C35: 332.872 | D35: 42.194 | E35: 19.896 | F35: 32.984 | G35: 427.946
A36: 30 | B36: 38.09 | C36: 372.618 | D36: 50.114 | E36: 24.905 | F36: 41.698 | G36: 489.335
A37: 31 | B37: 38.09 | C37: 408.263 | D37: 50.94 | E37: 25.301 | F37: 41.031 | G37: 525.535
A38: Загальний обсяг газу, м3 | C38: =SUM(C7:C37) -> 10352.511 | D38: 1853.037 | E38: 925.186 | F38: 1512.191 | G38: =SUM(G7:G37) -> 14642.925
A39: Енергія, МДж | C39: =SUMPRODUCT($B$7:$B$37,C7:C37) -> 394350.0259 | D39: 70589.75595 | E39: 35244.02032 | F39: 57606.29775 | G39: =SUMPRODUCT(B7:B37,G7:G37) -> 557790.0999
A40: Теплота згоряння (середньозважене значення за місяць), МДж/м³ | C40: =C39/C38 -> 38.09221028 | D40: =D39/D38 -> 38.09408876 | E40: =E39/E38 -> 38.09398361 | F40: =F39/F38 -> 38.09459106 | G40: =G39/G38 -> 38.09280591
A41: Теплота згоряння (середньозважене значення за місяць), ккал/м³ | C41: =C40*238.8459 -> 9098.168246 | D41: =D40*238.8459 -> 9098.616914 | E41: 9098.5918 | F41: 9098.736887 | G41: 9098.31051
A42: Теплота згоряння (середньозважене значення за місяць), кВт*год./м³ | C42: =C40/3.6 -> 10.58116952 | D42: =D40/3.6 -> 10.58169132 | E42: 10.58166211 | F42: 10.58183085 | G42: 10.58133497

Sheet додаток
A2: Додаток до Паспорту фізико-хімічних показників природного газу №25
A4: Область | B4: ГРС, прямий споживач | C4: Cередньозважене значення вищої теплоти згоряння
C5: МДж/м³ | D5: ккал/м³ | E5: кВт*год./м³
A6: Київська область | B6: ГРС Обухів (ДРЕС) | C6: 38.09230102 | D6: 9098.18992 | E6: 10.58119473
B7: ГРС Обухів (місто) | C7: 38.09420434 | D7: 9098.644519 | E7: 10.58172343
B8: ГРС Бугаївка | C8: 38.09409561 | D8: 9098.618551 | E8: 10.58169323
B9: ГРС Козин | C9: 38.09471911 | D9: 9098.76747 | E9: 10.58186642
A10: Середньозважене значення вищої теплоти згоряння по маршруту № 25 | C10: 38.09291036 | D10: 9098.335458 | E10: 10.58136399
A31: Головний інженер Боярського ЛВУМГ Табак С.М. 03.04.2017 р.
A32: Підрозділу підприємства, якому підпорядкована лабораторія | D32: прізвище | E32: підпис | F32: дата
A33: Завідувач вимірювальної хіміко-аналітичної лабораторії Клименко І.А. 03.04.2017 р.
A34: Лабораторія, де здійснювалось вимірювання газу | D34: прізвище | E34: підпис | F34: дата
A35: Начальник служби газовимірювань та метрології Прима Ю.І. 03.04.2017 р.
A36: Підрозділу, відповідального за облік газу за маршрутом | D36: прізвище | E36: підпис | F36: дата

Sheet variablesList (hidden)
A1: 3 | B1: x:\gaysin | C1: 10, 11, 24, 25, 127, 128, 132, 180, 207, 215 | D1: x:\
B2: x:\Illinci
B3: x:\Talne
